bitfinex/quotes_BTCUSD_20241101
["timestamp","ask_amount","ask_price","bid_price","bid_amount"]
[1730469231699,0.141039,70902.0,70898.0,0.001]
[1730469232104,0.282069,70905.0,70892.0,0.01472648]
[1730469232347,0.14608213,70911.0,70892.0,0.01472648]
[1730469232348,0.282075,70903.0,70892.0,0.01472648]
[1730469232577,0.141045,70899.0,70898.0,0.001]
[1730469232778,0.141045,70899.0,70892.0,0.01472648]
[1730469232779,0.141048,70898.0,70892.0,0.01472648]
[1730469232989,0.15423329,70897.0,70892.0,0.01472648]
[1730469233195,0.01318329,70896.0,70892.0,0.01472648]
[1730469233410,0.141047,70898.0,70892.0,0.01472648]
[1730469233616,0.01318263,70897.0,70892.0,0.01472648]
[1730469233819,0.01318263,70896.0,70892.0,0.01472648]
[1730469234146,0.282094,70899.0,70892.0,0.01472648]
[1730469234272,0.141052,70896.0,70892.0,0.01472648]
[1730469234486,0.29527753,70898.0,70892.0,0.01472648]
[1730469234487,0.01318184,70895.0,70892.0,0.01472648]
[1730469234685,0.282094,70899.0,70892.0,0.01572648]
[1730469234888,0.141049,70897.0,70892.0,0.01472648]
[1730469235119,0.01318191,70896.0,70892.0,0.01472648]
[1730469235273,0.141049,70897.0,70892.0,0.01572648]
[1730469235475,0.01318006,70896.0,70892.0,0.01572648]
[1730469235695,0.01318006,70895.0,70892.0,0.01572648]
[1730469235994,0.141051,70896.0,70892.0,0.01472648]
[1730469236462,0.49372764,70905.0,70892.0,0.01572648]
[1730469236463,0.282071,70905.0,70892.0,0.01572648]
[1730469236729,0.141039,70903.0,70892.0,0.01572648]
[1730469236911,0.141039,70903.0,70892.0,0.001]
[1730469236912,0.01317877,70902.0,70892.0,0.001]
[1730469237135,0.01317877,70901.0,70892.0,0.001]
[1730469237339,0.02108617,70906.0,70892.0,0.001]
[1730469237562,0.28206,70907.0,70892.0,0.001]
[1730469237563,0.141036,70904.0,70892.0,0.001]
[1730469237775,0.141038,70903.0,70889.0,0.001646]
[1730469237901,0.14104,70902.0,70892.0,0.001]
[1730469238115,0.282071,70904.0,70892.0,0.001]
[1730469238116,0.01317909,70901.0,70892.0,0.001]
[1730469238326,0.141024,70910.0,70894.0,0.28713713]
[1730469238551,0.01317967,70909.0,70895.0,0.27950825]
[1730469238755,0.01317967,70908.0,70895.0,0.27950825]
[1730469238972,0.01317967,70907.0,70895.0,0.27950825]
[1730469239186,0.141029,70908.0,70895.0,0.13845525]
[1730469239389,0.141022,70911.0,70895.0,0.27950825]
[1730469239592,0.01318306,70910.0,70895.0,0.27950825]
[1730469239794,0.01318306,70910.0,70889.0,0.2095229]
[1730469239795,0.21165664,70907.0,70889.0,0.001646]
[1730469240175,0.14608213,70910.0,70894.0,0.21165664]
[1730469240176,0.29524906,70906.0,70894.0,0.21165664]
[1730469240411,0.01318306,70905.0,70889.0,0.14010125]
[1730469240651,0.03427714,70904.0,70892.0,0.001648]
[1730469240948,0.06591165,70903.0,70894.0,0.21165664]
[1730469241197,0.01318306,70902.0,70894.0,0.21165664]
[1730469241429,0.141037,70904.0,70894.0,0.21165664]
[1730469241648,0.01318384,70903.0,70895.0,0.001]
[1730469241883,0.282039,70912.0,70895.0,0.001]
[1730469241884,0.21165664,70911.0,70895.0,0.14127641]
[1730469242101,0.15420822,70910.0,70895.0,0.13845525]
[1730469242330,0.141046,70899.0,70894.0,0.001]
[1730469242550,0.14104,70902.0,70895.0,0.21165664]
[1730469242783,0.02109463,70907.0,70894.0,0.001]
[1730469243012,0.14608213,70905.0,70894.0,0.001]
[1730469243237,0.07927295,70906.0,70892.0,0.001648]
[1730469243238,0.141057,70893.0,70892.0,0.001648]
[1730469243685,0.282107,70896.0,70892.0,0.001648]
[1730469243915,0.141053,70895.0,70892.0,0.001648]
[1730469244380,0.0825,70902.0,70892.0,0.001648]
[1730469244611,0.141054,70895.0,70892.0,0.001648]
[1730469244864,0.141057,70893.0,70892.0,0.001648]
[1730469246023,0.14608213,70899.0,70892.0,0.002648]
[1730469246244,0.141057,70893.0,70892.0,0.001648]
[1730469246467,0.141057,70893.0,70892.0,0.002648]
[1730469246706,0.19501588,70893.0,70892.0,0.002648]
[1730469246928,0.15424273,70893.0,70892.0,0.002648]
[1730469247379,0.141057,70893.0,70892.0,0.002648]
[1730469247599,0.15424072,70893.0,70892.0,0.002648]
[1730469247805,0.141057,70893.0,70892.0,0.002648]
[1730469248026,0.141057,70893.0,70892.0,0.001648]
[1730469248484,0.141057,70893.0,70892.0,0.002648]
[1730469248923,0.141057,70893.0,70892.0,0.003648]
[1730469249362,0.141057,70893.0,70892.0,0.001648]
[1730469249598,0.34173132,70893.0,70892.0,0.002648]
[1730469250478,0.35491172,70893.0,70892.0,0.002648]
[1730469251169,0.49900546,70893.0,70892.0,0.002648]
[1730469251829,0.43678639,70893.0,70892.0,0.001648]
[1730469252061,0.1542374,70893.0,70892.0,0.002648]
[1730469252553,0.141057,70893.0,70892.0,0.001648]
[1730469253309,0.141057,70893.0,70892.0,0.002648]
[1730469253527,0.282103,70896.0,70892.0,0.002648]
[1730469253761,0.22858213,70902.0,70892.0,0.001648]
[1730469253994,0.01318599,70901.0,70893.0,0.21165664]
[1730469254222,0.00382759,70920.0,70893.0,0.35773877]
[1730469254223,0.282047,70911.0,70893.0,0.35773877]
[1730469254450,0.21165664,70912.0,70893.0,0.35773877]
[1730469254451,0.01318906,70910.0,70893.0,0.28453738]
[1730469254677,0.282038,70913.0,70905.0,0.21165664]
[1730469254943,0.000824,70928.0,70911.0,0.1]
[1730469255385,0.000824,70928.0,70927.0,0.38707213]
[1730469255618,4.917e-05,70929.0,70928.0,0.319088]
[1730469255906,4.917e-05,70929.0,70928.0,0.46688416]
[1730469256111,0.1,70957.0,70947.0,0.28703213]
[1730469256355,0.1,70957.0,70947.0,0.42548738]
[1730469256568,0.1,70957.0,70947.0,0.28453738]
[1730469256806,0.1,70957.0,70948.0,0.13845525]
[1730469256807,0.000913,70956.0,70948.0,0.13845525]
[1730469257846,0.000913,70956.0,70947.0,0.14608213]
[1730469259166,0.000913,70956.0,70947.0,0.14708213]
[1730469259404,0.000913,70956.0,70948.0,0.13845525]
[1730469260112,0.000913,70956.0,70949.0,0.140946]
[1730469260353,0.000913,70956.0,70949.0,0.27940125]
[1730469260779,0.000913,70956.0,70949.0,0.13845525]
[1730469261016,0.000913,70956.0,70949.0,0.27940125]
[1730469261233,0.000913,70956.0,70949.0,0.28222005]
[1730469261425,0.000913,70956.0,70949.0,0.27940125]
[1730469262361,0.000913,70956.0,70949.0,0.13845525]
[1730469262585,0.000913,70956.0,70949.0,0.001]
[1730469262800,0.000913,70956.0,70947.0,0.14608213]
[1730469263244,0.000913,70956.0,70949.0,0.001]
[1730469263471,0.000913,70956.0,70947.0,0.14608213]
[1730469263684,0.000913,70956.0,70949.0,0.27940125]
[1730469263934,0.000913,70956.0,70949.0,0.28040125]
[1730469264151,0.000913,70956.0,70949.0,0.27940125]
[1730469266088,0.000913,70956.0,70949.0,0.28040125]
[1730469266274,0.000913,70956.0,70949.0,0.27940125]
[1730469266581,0.000913,70956.0,70949.0,0.13845525]
[1730469266812,0.000913,70956.0,70949.0,0.13945525]
[1730469267036,0.000913,70956.0,70949.0,0.28040125]
[1730469267494,0.000913,70956.0,70949.0,0.28140125]
[1730469267710,0.000913,70956.0,70949.0,0.27940125]
[1730469267929,0.000913,70956.0,70949.0,0.28040125]
[1730469269775,0.000913,70956.0,70949.0,0.27940125]
[1730469270221,0.000913,70956.0,70949.0,0.28040125]
[1730469270903,0.000913,70956.0,70949.0,0.27940125]
[1730469271365,0.000913,70956.0,70949.0,0.28040125]
[1730469272336,0.000913,70956.0,70941.0,0.140962]
[1730469272568,0.000913,70956.0,70937.0,0.35773877]
[1730469272569,0.141846,70956.0,70942.0,0.13845525]
[1730469272800,0.141846,70956.0,70949.0,0.001]
[1730469272801,0.000913,70956.0,70949.0,0.001]
[1730469276259,0.000823,70950.0,70949.0,0.27940125]
[1730469276471,0.000823,70950.0,70949.0,0.28040125]
[1730469276984,0.000823,70950.0,70949.0,0.27940125]
[1730469277432,0.000823,70950.0,70949.0,0.28040125]
[1730469278510,0.000823,70950.0,70949.0,0.27940125]
[1730469278955,0.000823,70950.0,70949.0,0.28040125]
[1730469279174,0.000823,70950.0,70949.0,0.001]
[1730469279627,0.000823,70950.0,70949.0,0.141946]
[1730469279850,0.000323,70950.0,70949.0,0.001]
[1730469281144,0.000323,70950.0,70949.0,0.37964026]
[1730469282333,0.000323,70950.0,70949.0,0.37864026]
[1730469282562,0.000323,70950.0,70949.0,0.37964026]
[1730469282777,0.000323,70950.0,70949.0,0.10023901]
[1730469282995,0.000323,70950.0,70949.0,0.24118501]
[1730469283882,0.000913,70956.0,70949.0,0.24118501]
[1730469283883,0.096236,70957.0,70949.0,0.24118501]
[1730469284343,0.01320513,70956.0,70949.0,0.10023901]
[1730469284559,0.01320513,70955.0,70950.0,0.140943]
[1730469284774,0.096236,70957.0,70949.0,0.38212801]
[1730469284775,0.01320513,70954.0,70949.0,0.10023901]
[1730469284992,0.096236,70957.0,70949.0,0.24118401]
[1730469284993,0.01320513,70953.0,70949.0,0.24118401]
[1730469285223,0.01320513,70952.0,70949.0,0.09923901]
[1730469285446,0.01320513,70951.0,70949.0,0.09923901]
[1730469285684,0.096236,70957.0,70949.0,0.24118501]
[1730469285909,0.01320979,70956.0,70949.0,0.24018501]
[1730469286130,0.01320979,70956.0,70949.0,0.10023901]
[1730469286352,0.01320979,70955.0,70950.0,0.140942]
[1730469286580,0.096236,70957.0,70949.0,0.10023901]
[1730469286581,0.01320979,70954.0,70949.0,0.141946]
[1730469286801,0.01320979,70953.0,70949.0,0.141946]
[1730469287046,0.08840979,70952.0,70925.0,0.1313]
[1730469287265,0.08840979,70952.0,70914.0,0.21165664]
[1730469287266,0.140964,70940.0,70939.0,0.21165664]
[1730469287487,0.140964,70940.0,70918.0,0.282012]
[1730469287488,0.140984,70930.0,70918.0,0.282012]
[1730469287700,0.15419379,70930.0,70921.0,0.141]
[1730469287937,0.01320979,70930.0,70924.0,0.140994]
[1730469288161,0.01320979,70930.0,70929.0,0.001648]
[1730469289087,0.01320979,70930.0,70929.0,0.002648]
[1730469289529,0.0752,70938.0,70929.0,0.24287301]
[1730469289737,0.01317629,70937.0,70933.0,0.09923901]
[1730469289948,0.21248064,70953.0,70937.0,0.09923901]
[1730469289949,0.281881,70952.0,70937.0,0.09923901]
[1730469290181,0.281881,70952.0,70940.0,0.140963]
[1730469290182,0.140945,70950.0,70940.0,0.140963]
[1730469290440,0.140945,70950.0,70941.0,0.140961]
[1730469290441,0.01317475,70949.0,70941.0,0.140961]
[1730469290693,0.01317475,70949.0,70939.0,0.281932]
[1730469290694,0.01317475,70948.0,70939.0,0.281932]
[1730469290932,0.01317475,70947.0,70941.0,0.140962]
[1730469291162,0.000824,70953.0,70932.0,0.281958]
[1730469291163,0.14096,70942.0,70932.0,0.281958]
[1730469291395,0.000824,70953.0,70934.0,0.140976]
[1730469291396,0.14095,70947.0,70934.0,0.140976]
[1730469291614,0.15412588,70946.0,70937.0,0.140969]
[1730469291834,0.140953,70946.0,70937.0,0.140969]
[1730469292306,0.14095,70948.0,70934.0,0.42040725]
[1730469292518,0.01317228,70947.0,70934.0,0.13845525]
[1730469292763,0.281892,70949.0,70937.0,0.140969]
[1730469292764,0.15412528,70946.0,70937.0,0.140969]
[1730469292999,0.140953,70946.0,70937.0,0.141969]
[1730469293234,0.140944,70950.0,70938.0,0.281936]
[1730469293453,0.01317056,70949.0,70948.0,0.422843]
[1730469293696,0.01317056,70949.0,70941.0,0.49357764]
[1730469293697,0.000824,70953.0,70941.0,0.14605225]
[1730469293910,0.000824,70953.0,70939.0,0.140966]
[1730469293911,0.15411105,70952.0,70939.0,0.140966]
[1730469294142,0.140946,70950.0,70940.0,0.27941725]
[1730469294368,0.15411705,70949.0,70940.0,0.13845525]
[1730469294634,0.01317005,70948.0,70941.0,0.140962]
[1730469294865,0.141763,70953.0,70943.0,0.140957]
[1730469295087,0.01317043,70952.0,70944.0,0.140955]
[1730469295323,0.01317043,70951.0,70944.0,0.140955]
[1730469295535,0.01317043,70951.0,70942.0,0.21165664]
[1730469295536,0.01317043,70950.0,70942.0,0.35261464]
[1730469295745,0.01317043,70949.0,70943.0,0.140957]
[1730469295956,0.140942,70951.0,70943.0,0.140957]
[1730469296170,0.01317049,70950.0,70943.0,0.140957]
[1730469296387,0.140942,70951.0,70943.0,0.140957]
[1730469296388,0.01317049,70949.0,70943.0,0.140957]
[1730469296614,0.000824,70953.0,70943.0,0.281915]
[1730469296832,0.1541117,70952.0,70943.0,0.140957]
[1730469297063,0.0131707,70951.0,70924.0,0.1]
[1730469297300,0.0131707,70951.0,70943.0,0.001]
[1730469297513,0.0131708,70950.0,70932.0,0.28196]
[1730469297732,0.140954,70945.0,70939.0,0.21165664]
[1730469297947,0.140954,70945.0,70943.0,0.001]
[1730469298174,0.000824,70953.0,70931.0,0.21165664]
[1730469298175,0.28188,70952.0,70931.0,0.21165664]
[1730469298479,0.281888,70950.0,70931.0,0.21165664]
[1730469298585,0.281888,70950.0,70923.0,0.21165664]
[1730469298586,0.14605225,70946.0,70923.0,0.21165664]
[1730469298818,0.0783,70949.0,70923.0,0.21165664]
[1730469298819,0.281956,70933.0,70923.0,0.21165664]
[1730469299039,0.30243525,70932.0,70931.0,0.21165664]
[1730469299491,0.563912,70933.0,70929.0,0.002648]
[1730469299492,0.140984,70930.0,70929.0,0.002648]
[1730469299753,0.15415522,70930.0,70929.0,0.001648]
[1730469299989,0.15415522,70930.0,70929.0,0.002648]
[1730469299990,0.15415609,70930.0,70929.0,0.002648]
[1730469300458,0.15415609,70930.0,70929.0,0.001648]
[1730469300686,0.15415609,70930.0,70929.0,0.002648]
[1730469300687,0.31561134,70930.0,70929.0,0.002648]
[1730469300909,0.30243925,70930.0,70929.0,0.001648]
[1730469301116,0.140984,70930.0,70929.0,0.001648]
[1730469301327,0.140984,70930.0,70929.0,0.002648]
[1730469302477,0.14605225,70938.0,70929.0,0.002648]
[1730469302478,0.0811,70949.0,70929.0,0.14770025]
[1730469302690,0.21955525,70949.0,70929.0,0.001648]
[1730469302924,0.0811,70949.0,70942.0,0.140959]
[1730469303133,0.281886,70951.0,70935.0,0.14605225]
[1730469303134,0.28189,70950.0,70935.0,0.14605225]
[1730469303355,0.281905,70946.0,70936.0,0.13845525]
[1730469303564,0.14095,70947.0,70938.0,0.422904]
[1730469303777,0.14095,70947.0,70937.0,0.28194]
[1730469303778,0.000824,70953.0,70937.0,0.28194]
[1730469304033,0.000824,70953.0,70933.0,0.21165664]
[1730469304034,0.563776,70950.0,70933.0,0.49360964]
[1730469304252,0.140958,70943.0,70942.0,0.001]
[1730469304476,0.140958,70943.0,70929.0,0.04258425]
[1730469304477,0.140984,70930.0,70929.0,0.001648]
[1730469305214,0.281964,70931.0,70929.0,0.001648]
[1730469305215,0.140982,70931.0,70929.0,0.001648]
[1730469305447,0.14098,70932.0,70929.0,0.001648]
[1730469305683,0.140983,70931.0,70929.0,0.001648]
[1730469305916,0.140982,70931.0,70929.0,0.001648]
[1730469306149,0.281932,70939.0,70929.0,0.001648]
[1730469306389,0.21165664,70943.0,70930.0,0.13845525]
[1730469306606,0.21165664,70943.0,70933.0,0.281952]
[1730469306841,0.140956,70944.0,70937.0,0.140969]
[1730469307068,0.140955,70945.0,70937.0,0.140969]
[1730469307298,0.281908,70945.0,70935.0,0.140973]
[1730469307561,0.281908,70945.0,70935.0,0.140974]
[1730469307562,0.140956,70944.0,70935.0,0.140974]
[1730469307788,0.0751,70949.0,70936.0,0.21165664]
[1730469308007,0.281884,70951.0,70937.0,0.281939]
[1730469308219,0.281884,70951.0,70936.0,0.21165664]
[1730469308220,0.140949,70948.0,70938.0,0.281936]
[1730469308440,0.14095,70947.0,70940.0,0.140963]
[1730469308911,0.140954,70945.0,70938.0,0.140967]
[1730469309144,0.140954,70945.0,70933.0,0.13845525]
[1730469309145,0.140964,70940.0,70933.0,0.13845525]
[1730469309389,0.140963,70941.0,70934.0,0.35263164]
[1730469309623,0.2819,70947.0,70929.0,0.001648]
[1730469309834,0.28192,70942.0,70937.0,0.001]
[1730469310272,0.140964,70940.0,70933.0,0.140976]
[1730469310498,0.281948,70935.0,70925.0,0.281987]
[1730469310747,0.281948,70935.0,70916.0,0.0818725]
[1730469310748,0.140972,70936.0,70933.0,0.001]
[1730469310982,0.140976,70934.0,70933.0,0.001]
[1730469311664,0.140984,70930.0,70924.0,0.21165664]
[1730469312631,0.0827,70937.0,70924.0,0.21165664]
[1730469312851,0.31165664,70941.0,70937.0,0.001]
[1730469313063,0.140968,70938.0,70937.0,0.001]
[1730469313300,0.140968,70938.0,70932.0,0.140979]
[1730469313523,0.281932,70939.0,70929.0,0.002648]
[1730469313732,0.1,70941.0,70929.0,0.002648]
[1730469313733,0.140984,70930.0,70929.0,0.001648]
[1730469314211,0.222184,70930.0,70929.0,0.001648]
[1730469314916,0.222184,70930.0,70929.0,0.002648]
[1730469315171,0.49681175,70930.0,70929.0,0.002648]
[1730469315383,0.49681577,70930.0,70929.0,0.002648]
[1730469315597,0.49681577,70930.0,70917.0,0.21165664]
[1730469315598,0.164007,70918.0,70917.0,0.21165664]
[1730469315857,0.31563877,70918.0,70917.0,0.21165664]
[1730469316086,0.141031,70906.0,70897.0,0.21165664]
[1730469316318,0.141031,70906.0,70897.0,0.35270564]
[1730469316762,0.282019,70917.0,70897.0,0.35270564]
[1730469316763,0.141041,70902.0,70897.0,0.35270564]
[1730469317207,0.141007,70918.0,70917.0,0.001]
[1730469317433,0.141007,70918.0,70898.0,0.13845525]
[1730469317434,0.123,70924.0,70904.0,0.141034]
[1730469317740,0.141031,70907.0,70900.0,0.282087]
[1730469317914,0.123,70924.0,70898.0,0.13845525]
[1730469317915,0.282033,70914.0,70907.0,0.141028]
[1730469318141,0.282015,70918.0,70904.0,0.141035]
[1730469318355,0.123,70924.0,70904.0,0.141035]
[1730469318356,0.282003,70921.0,70904.0,0.282069]
[1730469318570,0.141024,70910.0,70905.0,0.141032]
[1730469319041,0.141022,70911.0,70899.0,0.14605225]
[1730469319279,0.141022,70911.0,70906.0,0.141031]
[1730469319500,0.123,70924.0,70898.0,0.13845525]
[1730469319501,0.281967,70931.0,70909.0,0.14605225]
[1730469319755,0.281995,70923.0,70911.0,0.282043]
[1730469319989,0.281999,70922.0,70917.0,0.001]
[1730469320221,0.1,70935.0,70919.0,0.141005]
[1730469320222,0.1,70933.0,70919.0,0.141005]
[1730469320455,0.1,70933.0,70913.0,0.282035]
[1730469320456,0.281976,70928.0,70913.0,0.282035]
[1730469320700,0.281976,70928.0,70912.0,0.21165664]
[1730469320701,0.28198,70927.0,70914.0,0.13845525]
[1730469320935,0.1,70933.0,70919.0,0.282009]
[1730469321177,0.0783,70938.0,70922.0,0.281997]
[1730469321433,0.28189,70950.0,70920.0,0.13845525]
[1730469321434,0.49357064,70944.0,70927.0,0.14605225]
[1730469321717,0.281917,70943.0,70928.0,0.13845525]
[1730469321943,0.140958,70943.0,70936.0,0.140971]
[1730469322162,0.0783,70949.0,70931.0,0.281964]
[1730469322379,0.0783,70949.0,70935.0,0.281946]
[1730469322607,0.140956,70944.0,70939.0,0.140966]
[1730469322848,0.2819,70947.0,70939.0,0.140966]
[1730469323074,0.2819,70947.0,70940.0,0.140962]
[1730469323075,0.140953,70946.0,70940.0,0.140962]
[1730469323289,0.28189,70950.0,70939.0,0.21165664]
[1730469323514,0.140946,70950.0,70940.0,0.281928]
[1730469323733,0.281882,70952.0,70942.0,0.28192]
[1730469323995,0.000824,70953.0,70942.0,0.28192]
[1730469323996,0.000824,70953.0,70952.0,0.14094]
[1730469324266,0.000824,70953.0,70943.0,0.13845525]
[1730469324479,0.000824,70953.0,70952.0,0.14094]
[1730469325407,0.000824,70953.0,70943.0,0.13845525]
[1730469325408,0.140944,70951.0,70943.0,0.13845525]
[1730469325639,0.000824,70953.0,70946.0,0.21165664]
[1730469325867,0.000824,70953.0,70939.0,0.001]
[1730469326128,0.000824,70953.0,70938.0,0.21165664]
[1730469326365,0.140969,70938.0,70931.0,0.140982]
[1730469326578,0.140961,70942.0,70939.0,0.21165664]
[1730469326825,0.21165664,70952.0,70933.0,0.140978]
[1730469327055,0.21165664,70952.0,70933.0,0.27943325]
[1730469327056,0.140966,70939.0,70933.0,0.27943325]
[1730469327289,0.14687625,70953.0,70938.0,0.21165664]
[1730469327528,0.140958,70943.0,70937.0,0.140969]
[1730469327749,0.140961,70942.0,70938.0,0.21165664]
[1730469327978,0.140956,70944.0,70938.0,0.21165664]
[1730469328249,0.282703,70953.0,70939.0,0.13845525]
[1730469328250,0.000824,70953.0,70939.0,0.13845525]
[1730469328460,0.35259764,70952.0,70946.0,0.140952]
[1730469328685,0.000824,70953.0,70947.0,0.13845525]
[1730469328925,0.000824,70953.0,70948.0,0.281896]
[1730469329162,0.000824,70953.0,70952.0,0.14094]
[1730469329407,0.000824,70953.0,70951.0,0.140941]
[1730469329632,0.000824,70953.0,70952.0,0.14094]
[1730469330098,0.000824,70953.0,70949.0,0.13845525]
[1730469330313,0.000824,70953.0,70950.0,0.140943]
[1730469330754,0.000824,70953.0,70949.0,0.13845525]
[1730469330972,0.000824,70953.0,70950.0,0.140942]
[1730469331205,0.000824,70953.0,70952.0,0.14194]
[1730469331450,0.000824,70953.0,70952.0,0.27939525]
[1730469333465,0.000824,70953.0,70952.0,0.28039525]
[1730469333896,0.000824,70953.0,70952.0,0.27939525]
[1730469334123,0.000824,70953.0,70952.0,0.28039525]
[1730469334820,0.000824,70953.0,70952.0,0.28139525]
[1730469335073,0.000824,70953.0,70952.0,0.27939525]
[1730469336415,0.000824,70953.0,70952.0,0.28039525]
[1730469336644,0.000824,70953.0,70952.0,0.27939525]
[1730469336879,0.000824,70953.0,70952.0,0.28039525]
[1730469337162,0.000824,70953.0,70952.0,0.27939525]
[1730469337585,0.000824,70953.0,70952.0,0.28039525]
[1730469337796,0.000824,70953.0,70952.0,0.27939525]
[1730469338248,0.000824,70953.0,70952.0,0.28039525]
[1730469339430,0.000824,70953.0,70952.0,0.27939525]
[1730469339675,0.000824,70953.0,70952.0,0.28039525]
[1730469340112,0.000824,70953.0,70952.0,0.27939525]
[1730469340349,0.000824,70953.0,70952.0,0.28039525]
[1730469340592,0.000824,70953.0,70952.0,0.60219525]
[1730469340847,0.000799,70958.0,70957.0,0.24093]
[1730469341080,0.000799,70958.0,70957.0,0.37938525]
[1730469341309,0.000799,70958.0,70957.0,0.44097875]
[1730469341543,0.000799,70958.0,70957.0,0.37938525]
[1730469341768,0.000799,70958.0,70957.0,0.73709414]
[1730469342029,0.000375,70989.0,70985.0,0.140874]
[1730469342237,0.000375,70989.0,70972.0,0.14605225]
[1730469342465,0.000375,70989.0,70973.0,0.35011189]
[1730469342692,0.000375,70989.0,70984.0,0.281751]
[1730469342921,0.000375,70989.0,70985.0,0.140874]
[1730469343128,0.000375,70989.0,70983.0,0.140878]
[1730469343338,0.000375,70989.0,70984.0,0.140876]
[1730469343824,0.000375,70989.0,70985.0,0.001]
[1730469344507,0.000375,70989.0,70985.0,0.282748]
[1730469344727,0.000375,70989.0,70985.0,0.001]
[1730469344968,0.000375,70989.0,70985.0,0.141874]
[1730469345185,0.000375,70989.0,70985.0,0.001]
[1730469345691,0.000375,70989.0,70977.0,0.14605225]
[1730469345908,0.000375,70989.0,70985.0,0.001]
[1730469346783,0.000375,70989.0,70987.0,0.14087]
[1730469346996,0.000375,70989.0,70985.0,0.001]
[1730469347465,0.000375,70989.0,70986.0,0.140872]
[1730469348422,0.000375,70989.0,70987.0,0.14087]
[1730469349485,0.000375,70989.0,70987.0,0.14187]
[1730469349722,0.000375,70989.0,70987.0,0.24101025]
[1730469349978,0.000375,70989.0,70987.0,0.24001025]
[1730469350185,0.000375,70989.0,70987.0,0.24101025]
[1730469350625,0.000375,70989.0,70987.0,0.24001025]
[1730469351629,0.000375,70989.0,70987.0,0.3784655]
[1730469352130,0.000375,70989.0,70987.0,0.3794655]
[1730469352617,0.000375,70989.0,70987.0,0.3784655]
[1730469352838,0.000375,70989.0,70987.0,0.3794655]
[1730469353053,0.000375,70989.0,70987.0,0.3784655]
[1730469353275,1e-06,70989.0,70988.0,0.240868]
[1730469353495,1e-06,70989.0,70988.0,0.49097989]
[1730469353720,1e-06,70989.0,70988.0,0.27932325]
[1730469354874,0.000798,70999.0,70998.0,0.140849]
[1730469355092,0.000798,70999.0,70998.0,0.3784445]
[1730469356293,0.000798,70999.0,70998.0,0.4608445]
[1730469356559,0.000798,70999.0,70998.0,0.3794445]
[1730469356773,0.000798,70999.0,70998.0,0.27930425]
[1730469357215,0.000798,70999.0,70998.0,0.28030425]
[1730469357458,0.000798,70999.0,70998.0,0.27930425]
[1730469358358,0.000798,70999.0,70998.0,0.37930425]
[1730469359027,0.000798,70999.0,70998.0,0.38030425]
[1730469359277,0.000798,70999.0,70998.0,0.46553999]
[1730469359719,0.000798,70999.0,70998.0,0.46653999]
[1730469359935,0.000798,70999.0,70998.0,0.46553999]
[1730469360376,0.000798,70999.0,70998.0,0.46653999]
[1730469361018,0.000798,70999.0,70998.0,0.46553999]
[1730469361245,0.000798,70999.0,70998.0,0.38313999]
[1730469362197,0.000798,70999.0,70998.0,0.27930425]
[1730469362405,0.000798,70999.0,70998.0,0.28030425]
[1730469362846,0.000798,70999.0,70998.0,0.27930425]
[1730469363373,0.500798,70999.0,70998.0,0.28030425]
[1730469363586,0.50004452,70999.0,70998.0,0.37930425]
[1730469363803,0.50004452,70999.0,70998.0,0.38030425]
[1730469364034,0.50004452,70999.0,70998.0,0.37930425]
[1730469364497,0.50004452,70999.0,70998.0,0.38030425]
[1730469365647,0.50004452,70999.0,70998.0,0.51160425]
[1730469366099,0.50004452,70999.0,70998.0,0.51260425]
[1730469366318,0.50004452,70999.0,70998.0,0.51160425]
[1730469366554,0.50004452,70999.0,70998.0,0.53460425]
[1730469366791,0.50004452,70999.0,70998.0,0.51260425]
[1730469367476,0.50004452,70999.0,70998.0,0.38130425]
[1730469367712,0.50004452,70999.0,70998.0,0.37930425]
[1730469369241,0.50004452,70999.0,70998.0,0.38030425]
[1730469369513,0.50004452,70999.0,70998.0,0.37930425]
[1730469369936,0.50004452,70999.0,70998.0,0.38030425]
[1730469370200,0.50004452,70999.0,70998.0,0.43662525]
[1730469370435,0.50004452,70999.0,70998.0,0.38030425]
[1730469370650,0.50004452,70999.0,70998.0,0.37930425]
[1730469370873,0.50004452,70999.0,70998.0,0.27930425]
[1730469371122,0.50004452,70999.0,70998.0,0.49196089]
[1730469371328,0.50004452,70999.0,70998.0,0.28030425]
[1730469372886,0.50004452,70999.0,70998.0,0.27930425]
[1730469373103,0.50004452,70999.0,70998.0,0.38030425]
[1730469373600,0.50004452,70999.0,70998.0,0.37930425]
[1730469373830,0.50004452,70999.0,70998.0,0.38030425]
[1730469374053,0.50004452,70999.0,70998.0,0.37930425]
[1730469374477,0.50004452,70999.0,70998.0,0.38030425]
[1730469374728,0.50004452,70999.0,70998.0,0.37930425]
[1730469375434,0.50004452,70999.0,70998.0,0.27930425]
[1730469376283,0.50004452,70999.0,70998.0,0.28030425]
[1730469376500,0.50004452,70999.0,70998.0,0.27930425]
[1730469376711,0.50004452,70999.0,70998.0,0.28030425]
[1730469377166,0.50004452,70999.0,70998.0,0.27930425]
[1730469377412,0.50004452,70999.0,70998.0,0.28030425]
[1730469377863,0.50004452,70999.0,70998.0,0.27930425]
[1730469378798,0.50004452,70999.0,70998.0,0.37837705]
[1730469379023,0.50004452,70999.0,70998.0,0.37937705]
[1730469379475,0.50004452,70999.0,70998.0,0.37837705]
[1730469379725,0.50004452,70999.0,70998.0,0.37937705]
[1730469379961,0.50004452,70999.0,70998.0,0.37837705]
[1730469380205,0.50004452,70999.0,70998.0,0.47937705]
[1730469380645,0.50004452,70999.0,70998.0,0.47837705]
[1730469380884,0.50004452,70999.0,70998.0,0.47937705]
[1730469381577,0.06029041,70999.0,70998.0,0.86800649]
[1730469381800,0.0821,71020.0,70998.0,0.86800649]
[1730469381801,0.21165664,71023.0,71000.0,0.1015]
[1730469382036,0.21165664,71023.0,70998.0,0.71223656]
[1730469382037,0.21165664,71023.0,71022.0,0.47795999]
[1730469382557,0.140756,71045.0,71036.0,0.140773]
[1730469382760,0.281503,71048.0,71036.0,0.37830105]
[1730469382879,0.281511,71046.0,71036.0,0.27922825]
[1730469383075,0.281512,71045.0,71036.0,0.13845525]
[1730469383277,0.281503,71047.0,71036.0,0.27922825]